fUSD/lending_fUSD_20251123
["ID","MTS","AMOUNT","RATE_DAILY","PERIOD"]
[394705049,1763908313933,-298.7127019,0.00015999,2]
[394705050,1763908313942,-201.2872981,0.00015999,2]
[394705051,1763908313960,-298.7127019,0.00015999,2]
[394705052,1763908313969,-201.2872981,0.00015999,2]
[394705053,1763908313994,-298.7127019,0.00015999,2]
[394705054,1763908314003,-201.2872981,0.00015999,2]
[394705055,1763908314029,-298.7127019,0.00015999,2]
[394705056,1763908314038,-201.2872981,0.00015999,2]
[394705057,1763908314067,-298.7127019,0.00015999,2]
[394705058,1763908314077,-201.2872981,0.00015999,2]
[394705059,1763908314094,-298.7127019,0.00015999,2]
[394705060,1763908314103,-201.2872981,0.00015999,2]
[394705061,1763908314126,-298.7127019,0.00015999,2]
[394705062,1763908314136,-201.2872981,0.00015999,2]
[394705063,1763908314153,-194.8808076,0.00015999,2]
[394705064,1763908314307,-103.8318943,0.00015999,2]
[394705065,1763908314345,-500.0,0.00015999,2]
[394705066,1763908314383,-500.0,0.00015999,2]
[394705067,1763908314419,-500.0,0.00015999,2]
[394705068,1763908314456,-500.0,0.00015999,2]
[394705069,1763908314493,-500.0,0.00015999,2]
[394705070,1763908314528,-500.0,0.00015999,2]
[394705071,1763908314565,-500.0,0.00015999,2]
[394705072,1763908314600,-500.0,0.00015999,2]
[394705073,1763908314636,-500.0,0.00015999,2]
[394705074,1763908314672,-292.3462114,0.00015999,2]
[394705075,1763908314748,-207.6537886,0.00015999,2]
[394705076,1763908314783,-345.96405377,0.00015999,2]
[394705077,1763908314816,-538.20238331,0.00015999,2]
[394705078,1763908314850,-500.0,0.00015999,2]
[394705079,1763908314885,-500.0,0.00015999,2]
[394705080,1763908314922,-500.0,0.00015999,2]
[394705081,1763908314959,-500.0,0.00015999,2]
[394705082,1763908314996,-500.0,0.00015999,2]
[394705083,1763908315032,-500.0,0.00015999,2]
[394705084,1763908315068,-500.0,0.00015999,2]
[394705085,1763908315104,-316.36954864,0.00015999,2]
[394705086,1763908315177,-183.63045136,0.00015999,2]
[394705087,1763908315213,-500.0,0.00015999,2]
[394705088,1763908315250,-500.0,0.00015999,2]
[394705089,1763908315285,-500.0,0.00015999,2]
[394705090,1763908315320,-500.0,0.00015999,2]
[394705091,1763908315358,-500.0,0.00015999,2]
[394705092,1763908315397,-500.0,0.00015999,2]
[394705093,1763908315434,-500.0,0.00015999,2]
[394705094,1763908315470,-500.0,0.00015999,2]
[394705095,1763908315506,-500.0,0.00015999,2]
[394705096,1763908315542,-132.74909728,0.00015999,2]
[394705097,1763908316886,-258.53514268,0.00015999,2]
[394705098,1763908316903,-108.71576004,0.00015999,2]
[394705099,1763908316913,-391.28423996,0.00015999,2]
[394705101,1763908328642,-344.01033062,0.000159,2]
[394705102,1763908328675,-344.01033062,0.000159,2]
[394705103,1763908328711,-108.71576004,0.00015999,2]
[394705104,1763908328747,-500.0,0.00015999,2]
[394705105,1763908328783,-500.0,0.00015999,2]
[394705106,1763908328820,-500.0,0.00015999,2]
[394705107,1763908328857,-500.0,0.00015999,2]
[394705108,1763908328895,-500.0,0.00015999,2]
[394705109,1763908328933,-500.0,0.00015999,2]
[394705110,1763908328970,-450.0,0.00015999,2]
[394705111,1763908329007,-500.0,0.00015999,2]
[394705112,1763908329044,-6.53715744,0.00015999,2]
[394705113,1763908329169,-493.46284256,0.00015999,2]
[394705114,1763908329210,-500.0,0.00015999,2]
[394705115,1763908329251,-500.0,0.00015999,2]
[394705116,1763908329289,-500.0,0.00015999,2]
[394705117,1763908329325,-500.0,0.00015999,2]
[394705118,1763908329362,-500.0,0.00015999,2]
[394705119,1763908329397,-500.0,0.00015999,2]
[394705120,1763908329427,-325.16377217,0.0001612,2]
[394705121,1763908329883,-174.83622783,0.0001624,2]
[394705122,1763908329906,-325.16377217,0.0001624,2]
[394705123,1763908329939,-2362.75677054,0.0001624,2]
[394705124,1763908334782,-344.01033062,0.000159,2]
[394705125,1763908334812,-500.0,0.00015999,2]
[394705126,1763908334844,-3682.04936691,0.0001624,2]
[394705127,1763908334910,-947.89060494,0.0001624,2]
[394705128,1763908334947,-999.0,0.00016251,3]
[394705129,1763908334978,-509.31325761,0.00016351,2]
[394705130,1763908335047,-6983.38348478,0.00016351,2]
[394705131,1763908337778,-344.01033062,0.000159,2]
[394705132,1763908337809,-500.0,0.00016438,2]
[394705133,1763908337842,-500.0,0.00016438,2]
[394705134,1763908337874,-280.19395647,0.00016438,2]
[394705135,1763908337906,-500.0,0.00016438,2]
[394705136,1763908337940,-500.0,0.00016438,2]
[394705137,1763908337975,-500.0,0.00016438,2]
[394705138,1763908338009,-314.47689202,0.00016438,2]
[394705139,1763908338041,-500.0,0.00016438,2]
[394705140,1763908338073,-500.0,0.00016438,2]
[394705141,1763908338109,-500.0,0.00016438,2]
[394705142,1763908339305,-122.64764178,0.00016438,2]
[394705143,1763908340749,-830.0,0.00015999,2]
[394705144,1763908340782,-377.35235822,0.00016438,2]
[394705145,1763908340814,-500.0,0.00016438,2]
[394705146,1763908340847,-585.45848664,0.00016438,2]
[394705147,1763908340882,-500.0,0.00016438,2]
[394705148,1763908340915,-500.0,0.00016438,2]
[394705149,1763908340947,-500.0,0.00016438,2]
[394705150,1763908340978,-550.98540309,0.00016438,2]
[394705151,1763908341009,-500.0,0.00016438,2]
[394705152,1763908341154,-500.0,0.00016438,2]
[394705153,1763908341189,-500.0,0.00016438,2]
[394705154,1763908341224,-500.0,0.00016438,2]
[394705155,1763908341258,-500.0,0.00016438,2]
[394705156,1763908341292,-500.0,0.00016438,2]
[394705157,1763908341324,-500.0,0.00016438,2]
[394705158,1763908341364,-500.0,0.00016438,2]
[394705159,1763908341400,-500.0,0.00016438,2]
[394705160,1763908341434,-500.0,0.00016438,2]
[394705167,1763908702395,1538.63,7.798e-05,2]
[394705168,1763908702603,1538.63,8.209e-05,2]
[394705169,1763908702895,1538.63,8.619e-05,2]
[394705170,1763908703180,1538.63,9.03e-05,2]
[394705171,1763908703382,1538.63,9.44e-05,2]
[394705172,1763908703589,1538.63,9.851e-05,2]
[394705173,1763908703944,768.23,0.00010261,2]
[394705174,1763908703975,770.4,0.00010261,2]
[394705175,1763908704125,1538.63,0.00010671,2]
[394705176,1763908704665,1538.63,0.00011082,2]
[394705177,1763908704887,1538.63,0.00011492,2]
[394705178,1763908705093,1538.63,0.00011903,2]
[394705179,1763908705328,1538.63,0.00012313,2]
[394705180,1763908705517,1536.46,0.00012724,2]
[394705181,1763908705544,2.17,0.00012724,2]
[394705182,1763908705715,1538.63,0.00013134,2]
[394705183,1763908705926,1538.63,0.00013545,2]
[394705184,1763908706150,1538.63,0.00013955,2]
[394705185,1763908706331,1538.63,0.00014365,2]
[394705189,1763908748067,427.969937,7.945e-05,2]
[394705192,1763908787834,200.0,0.00014645,2]
[394705203,1763908942608,672.44,0.00014719,2]
[394705205,1763908970411,8699.600063,0.000145,2]
[394705206,1763908970437,10000.01,0.000145,2]
[394705207,1763908970461,10000.01,0.000145,2]
[394705208,1763908970486,10000.01,0.000145,2]
[394705209,1763908970510,10000.01,0.000145,2]
[394705210,1763908970534,10000.01,0.000145,2]
[394705212,1763908979753,-3843.32,0.000145,2]
[394705213,1763908979945,-10000.01,0.000145,2]
[394705214,1763908980090,-10000.01,0.000145,2]
[394705215,1763908980261,-10000.01,0.000145,2]
[394705216,1763908982583,-300.0,0.00014499,2]
[394705217,1763908982627,-9400.01,0.000145,2]
[394705218,1763908982832,-10000.01,0.000145,2]
[394705219,1763908982971,-10000.01,0.000145,2]
[394705220,1763908991516,-10000.01,0.000145,2]
[394705221,1763908991615,-10000.01,0.000145,2]
[394705222,1763908992062,-10000.01,0.000145,2]
[394705223,1763908992085,-10000.01,0.000145,2]
[394705225,1763908994653,-10000.01,0.000145,2]
[394705227,1763908994867,-10000.01,0.000145,2]
[394705228,1763909000533,-10000.01,0.000145,2]
[394705229,1763909000682,-10000.01,0.000145,2]
[394705230,1763909000813,-10000.01,0.000145,2]
[394705231,1763909000918,-10000.01,0.000145,2]
[394705232,1763909001012,-10000.01,0.000145,2]
[394705240,1763909121469,318.328044,0.0001439,2]
[394705242,1763909131212,393.3401179,0.00014399,2]
[394705243,1763909160735,-250.0,0.00014463,2]
[394705244,1763909160770,-195.0,0.00014481,2]
[394705245,1763909160803,-300.73037782,0.00014481,2]
[394705246,1763909160838,-300.0,0.00014499,2]
[394705247,1763909160872,-1200.0,0.00014499,2]
[394705248,1763909160905,-300.0,0.00014499,2]
[394705249,1763909160937,-300.0,0.00014499,2]
[394705250,1763909161210,-3596.88108246,0.000145,2]
[394705251,1763909161259,-10000.01,0.000145,2]
[394705252,1763909166626,-991.32855701,0.000145,2]
[394705253,1763909166656,-8017.35288598,0.000145,2]
[394705254,1763909166789,-195.0,0.00014548,2]
[394705255,1763909166821,-150.0,0.00014573,2]
[394705256,1763909166853,-150.0,0.00014573,2]
[394705257,1763909166885,-150.0,0.00014573,2]
[394705258,1763909166917,-150.0,0.00014573,2]
[394705259,1763909166948,-150.0,0.00014573,2]
[394705260,1763909166981,-150.0,0.00014573,2]
[394705261,1763909167011,-150.0,0.00014573,2]
[394705262,1763909167042,-150.0,0.00014573,2]
[394705263,1763909167072,-150.0,0.00014573,2]
[394705264,1763909167104,-150.0,0.00014573,2]
[394705265,1763909167137,-150.0,0.00014573,2]
[394705266,1763909167168,-393.3401179,0.00014667,2]
[394705267,1763909167201,-150.0,0.00014688,2]
[394705268,1763909167232,-150.0,0.00014708,2]
[394705269,1763909167264,-150.0,0.00014708,2]
[394705270,1763909167296,-150.0,0.0001472,2]
[394705271,1763909167327,-150.0,0.00014735,2]
[394705272,1763909167361,-150.0,0.00014735,2]
[394705273,1763909167394,-1538.63,0.00014776,2]
[394705274,1763909167427,-150.0,0.00014804,2]
[394705275,1763909167459,-150.0,0.00014842,2]
[394705276,1763909168584,-46.0697642,0.00014524,2]
[394705277,1763909277986,170.0,6e-07,2]
[394705279,1763909319048,9830.01,0.00014505,2]
[394705336,1763909412523,-3912.6902643,0.00014505,2]
[394705337,1763909412800,-2174.6294714,0.00014505,2]
[394705338,1763909427492,-212.12966822,0.00014524,2]
[394705350,1763909431541,-195.0,0.00014524,2]
[394705351,1763909431551,-148.9302358,0.00014524,2]
[394705352,1763909431562,-706.63,0.0001455,2]
[394705353,1763909431571,-300.0,0.00014553,2]
[394705354,1763909431581,-109.89507038,0.00014553,2]
[394705355,1763909431612,-1090.10492962,0.00014553,2]
[394705356,1763909431621,-280.14,0.00014553,2]
[394705357,1763909431631,-3136.22,0.00014554,2]
[394705358,1763909431640,-7214.05768672,0.00014811,2]
[394705359,1763909431651,-212.12966822,0.00014811,2]
[394705360,1763909431660,-212.12966822,0.00014811,2]
[394705361,1763909431670,-150.0,0.00014842,2]
[394705362,1763909431679,-150.0,0.00014867,2]
[394705363,1763909431688,-300.0,0.00014895,2]
[394705364,1763909431697,-150.0,0.00014896,2]
[394705365,1763909431707,-150.0,0.00014896,2]
[394705366,1763909431716,-150.0,0.00014896,2]
[394705367,1763909431726,-150.0,0.0001492,2]
[394705368,1763909431736,-1200.0,0.00014976,2]
[394705369,1763909431745,-150.0,0.00014977,2]
[394705370,1763909431754,-150.0,0.00014977,2]
[394705371,1763909431763,-240.24464515,0.00015,2]
[394705372,1763909431773,-150.0,0.00015014,2]
[394705373,1763909431782,-300.0,0.00015022,2]
[394705374,1763909431793,-1000.0,0.00015026,2]
[394705375,1763909431803,-39038.52,0.00015027,2]
[394705376,1763909431814,-150.0,0.00015035,2]
[394705377,1763909431823,-150.0,0.00015058,2]
[394705379,1763909431833,-150.0,0.00015058,2]
[394705381,1763909431843,-500.0,0.00015081,2]
[394705382,1763909431853,-300.0,0.000151,2]
[394705384,1763909431863,-300.0,0.00015111,2]
[394705385,1763909431872,-150.0,0.00015112,2]
[394705386,1763909431884,-150.0,0.00015112,2]
[394705387,1763909431893,-150.0,0.00015112,2]
[394705388,1763909431902,-150.0,0.00015112,2]
[394705389,1763909431912,-150.0,0.00015151,2]
[394705390,1763909431921,-635.78581923,0.00015155,2]
[394705391,1763909431931,-150.0,0.00015161,2]
[394705392,1763909431940,-1538.63,0.00015186,2]
[394705393,1763909431949,-12504.84,0.00015187,2]
[394705394,1763909431958,-1000.0,0.00015192,2]
[394705395,1763909431967,-150.0,0.0001522,2]
[394705396,1763909431976,-150.0,0.0001522,2]
[394705397,1763909431985,-150.0,0.0001522,2]
[394705398,1763909431994,-150.0,0.00015247,2]
[394705399,1763909432004,-150.0,0.00015247,2]
[394705400,1763909432013,-150.0,0.00015267,2]
[394705401,1763909432023,-481.42,0.0001529,2]
[394705403,1763909432034,-150.0,0.00015309,2]
[394705405,1763909432043,-150.0,0.00015382,2]
[394705407,1763909432052,-150.0,0.00015382,2]
[394705408,1763909432062,-150.0,0.00015382,2]
[394705409,1763909432072,-150.0,0.00015382,2]
[394705410,1763909432082,-150.0,0.00015382,2]
[394705411,1763909432094,-425.38,0.00015389,2]
[394705412,1763909432105,-150.0,0.00015456,2]
[394705413,1763909432114,-150.0,0.00015467,2]
[394705414,1763909432124,-7921.09,0.00015467,2]
[394705415,1763909432134,-150.0,0.00015498,2]
[394705416,1763909432143,-150.0,0.00015517,2]
[394705417,1763909432153,-150.0,0.00015517,2]
[394705418,1763909432163,-150.0,0.00015544,2]
[394705419,1763909432172,-150.0,0.00015544,2]
[394705420,1763909432182,-150.0,0.00015544,2]
[394705421,1763909432191,-1538.63,0.00015597,2]
[394705422,1763909432200,-150.0,0.00015603,2]
[394705423,1763909432211,-150.0,0.00015614,2]
[394705424,1763909432220,-150.0,0.00015652,2]
[394705425,1763909432230,-150.0,0.00015652,2]
[394705426,1763909432241,-150.0,0.00015652,2]
[394705427,1763909432250,-150.0,0.00015652,2]
[394705428,1763909432260,-610.0,0.00015668,2]
[394705429,1763909432271,-150.0,0.00015706,2]
[394705430,1763909432280,-150.0,0.00015706,2]
[394705431,1763909432290,-150.0,0.00015729,2]
[394705432,1763909432301,-150.0,0.0001575,2]
[394705433,1763909432310,-200.0,0.0001576,2]
[394705434,1763909432320,-150.0,0.00015787,2]
[394705435,1763909432330,-150.0,0.00015787,2]
[394705436,1763909432340,-150.0,0.00015845,2]
[394705437,1763909432349,-150.0,0.00015868,2]
[394705438,1763909432359,-150.0,0.00015868,2]
[394705439,1763909432368,-150.0,0.00015868,2]
[394705440,1763909432378,-300.0,0.0001587,2]
[394705441,1763909432387,-150.0,0.00015897,2]
[394705442,1763909432397,-195.0,0.00015909,2]
[394705443,1763909432407,-193.0,0.00015909,2]
[394705444,1763909432418,-150.0,0.00015922,2]
[394705445,1763909432427,-150.0,0.00015922,2]
[394705446,1763909432437,-336.45998413,0.00015934,2]
[394705447,1763909432450,-83.54001587,0.00015934,2]
[394705448,1763909432459,-195.0,0.0001595,2]
[394705449,1763909432469,-300.0,0.00015956,2]
[394705450,1763909432479,-193.52707338,0.00015956,2]
[394705451,1763909432488,-250.0,0.00015956,2]
[394705452,1763909432497,-150.0,0.0001596,2]
[394705453,1763909432507,-195.0,0.00015977,2]
[394705454,1763909432516,-250.0,0.00015977,2]
[394705455,1763909432525,-250.0,0.00015977,2]
[394705456,1763909432535,-1310.8,0.00015989,2]
[394705457,1763909432544,-209.77070511,0.00015989,2]
[394705458,1763909432555,-216.47457271,0.00015989,2]
[394705459,1763909432564,-151.0,0.00015989,2]
[394705460,1763909432574,-151.0,0.00015989,2]
[394705461,1763909432583,-500.0,0.00015989,2]
[394705462,1763909432593,-442.71974365,0.00015989,2]
[394705463,1763909432602,-151.0,0.00015989,2]
[394705464,1763909432612,-151.0,0.00015989,2]
[394705465,1763909432621,-151.0,0.00015989,2]
[394705466,1763909432631,-151.0,0.00015989,2]
[394705467,1763909432641,-151.0,0.00015989,2]
[394705468,1763909432650,-151.0,0.00015989,2]
[394705469,1763909432660,-207.23322525,0.00015989,2]
[394705470,1763909432669,-151.0,0.00015989,2]
[394705471,1763909432679,-151.0,0.00015989,2]
[394705472,1763909432688,-151.0,0.00015989,2]
[394705473,1763909432697,-151.0,0.00015989,2]
[394705474,1763909432707,-151.0,0.00015989,2]
[394705475,1763909432716,-151.0,0.00015989,2]
[394705476,1763909432726,-151.0,0.00015989,2]
[394705477,1763909432735,-151.0,0.00015989,2]
[394705478,1763909432745,-151.0,0.00015989,2]
[394705479,1763909432754,-151.0,0.00015989,2]
[394705480,1763909432764,-151.0,0.00015989,2]
[394705481,1763909432774,-151.0,0.00015989,2]
[394705482,1763909432783,-453.66973044,0.00015999,2]
[394705483,1763909432794,-500.0,0.00015999,2]
[394705484,1763909432806,-500.0,0.00015999,2]
[394705485,1763909432816,-500.0,0.00015999,2]
[394705486,1763909432825,-364.07522312,0.00015999,2]
[394705487,1763909432839,-135.92477688,0.00015999,2]
[394705488,1763909432848,-500.0,0.00015999,2]
[394705489,1763909432857,-500.0,0.00015999,2]
[394705490,1763909432867,-500.0,0.00015999,2]
[394705491,1763909432877,-500.0,0.00015999,2]
[394705492,1763909432890,-500.0,0.00015999,2]
[394705493,1763909432900,-500.0,0.00015999,2]
[394705494,1763909432910,-500.0,0.00015999,2]
[394705495,1763909432919,-519.967806,0.00015999,2]
[394705496,1763909432928,-500.0,0.00015999,2]
[394705497,1763909432939,-500.0,0.00015999,2]
[394705498,1763909432948,-306.06982656,0.00015999,2]
[394705499,1763909432957,-500.0,0.00015999,2]
[394705500,1763909432967,-306.38247304,0.00016,2]
[394705501,1763909432976,-1680.0,0.00016008,2]
[394705502,1763909432985,-244.27,0.00016009,2]
[394705503,1763909432994,-150.0,0.0001603,2]
[394705504,1763909433004,-150.0,0.0001603,2]
[394705505,1763909433013,-150.0,0.00016045,2]
[394705506,1763909433022,-3044.17536192,0.0001605,2]
[394705507,1763909433034,-717.99160486,0.0001605,2]
[394705508,1763909433054,-3150.97553322,0.0001605,2]
[394705509,1763909433063,-150.0,0.00016057,2]
[394705510,1763909433072,-63.53598883,0.00016057,2]
[394705511,1763909433088,-86.46401117,0.00016057,2]
[394705512,1763909433097,-852.99552918,0.00016073,2]
[394705513,1763909433107,-205.00619201,0.00016073,2]
[394705514,1763909433116,-544.08987343,0.00016073,2]
[394705515,1763909433125,-150.0,0.00016076,2]
[394705516,1763909433134,-500.0,0.00016149,2]
[394705517,1763909433144,-500.0,0.00016149,2]
[394705518,1763909433154,-500.0,0.00016149,2]
[394705519,1763909433164,-86.22946325,0.00016149,2]
[394705525,1763909437502,-2500.0,0.0001605,2]
[394705526,1763909437511,-22150.37485861,0.00016073,2]
[394705527,1763909437618,-6446.15260698,0.00016073,2]
[394705528,1763909437628,-413.77053675,0.00016149,2]
[394705529,1763909437638,-500.0,0.00016149,2]
[394705530,1763909437648,-509.57170512,0.00016149,2]
[394705531,1763909437658,-500.0,0.00016149,2]
[394705532,1763909437667,-500.0,0.00016149,2]
[394705533,1763909437676,-500.0,0.00016149,2]
[394705534,1763909437686,-500.0,0.00016149,2]
[394705535,1763909437695,-500.0,0.00016149,2]
[394705536,1763909437704,-500.0,0.00016149,2]
[394705537,1763909437713,-500.0,0.00016149,2]
[394705538,1763909437723,-760000.0,0.0001615,2]
[394705539,1763909437732,-500.0,0.00016173,2]
[394705540,1763909437741,-500.0,0.00016173,2]
[394705542,1763909437750,-223.24060117,0.00016173,2]
[394705543,1763909437759,-500.0,0.00016173,2]
[394705544,1763909437768,-500.0,0.00016173,2]
[394705545,1763909437778,-500.0,0.00016173,2]
[394705546,1763909437788,-500.0,0.00016173,2]
[394705547,1763909437803,-500.0,0.00016173,2]
[394705548,1763909437813,-500.0,0.00016173,2]
[394705549,1763909437822,-500.0,0.00016173,2]
[394705550,1763909437832,-500.0,0.00016173,2]
[394705551,1763909437843,-500.09966987,0.00016173,2]
[394705552,1763909437853,-500.0,0.00016173,2]
[394705553,1763909437862,-500.0,0.00016173,2]
[394705554,1763909437872,-500.0,0.00016173,2]
[394705555,1763909437883,-500.0,0.00016173,2]
[394705556,1763909437892,-500.0,0.00016173,2]
[394705557,1763909437901,-500.0,0.00016173,2]
[394705558,1763909437910,-500.0,0.00016173,2]
[394705559,1763909437920,-500.0,0.00016173,2]
[394705560,1763909437929,-500.0,0.00016173,2]
[394705561,1763909437938,-500.0,0.00016173,2]
[394705562,1763909437947,-158.46950603,0.00016192,2]
[394705563,1763909437957,-167.43593813,0.00016192,2]
[394705564,1763909437966,-247.8255487,0.00016192,2]
[394705565,1763909437976,-290.12585483,0.00016192,2]
[394705566,1763909437986,-230.26529958,0.00016192,2]
[394705567,1763909437996,-185.08601957,0.00016192,2]
[394705568,1763909438005,-154.08670012,0.00016192,2]
[394705569,1763909438014,-168.66866561,0.00016192,2]
[394705570,1763909438024,-150.0,0.00016192,2]
[394705571,1763909438033,-150.0,0.00016192,2]
[394705572,1763909438043,-232.97251994,0.00016192,2]
[394705573,1763909438053,-3173.6729,0.00016193,2]
[394705574,1763909438063,-1703.75953489,0.00016194,2]
[394705575,1763909438074,-1703.7595349,0.00016194,2]
[394705576,1763909438084,-1000.0,0.00016194,2]
[394705577,1763909438097,-3187.4039,0.00016194,2]
[394705578,1763909438108,-1719.71359683,0.000162,2]
[394705579,1763909438118,-510.0,0.0001623,2]
[394705580,1763909438130,-150.0,0.0001624,2]
[394705581,1763909438141,-1129.7655,0.00016247,2]
[394705582,1763909438150,-1310.8,0.00016263,2]
[394705583,1763909438164,-500.99345613,0.00016273,2]
[394705584,1763909438174,-529.75501509,0.00016273,2]
[394705585,1763909438186,-506.68544117,0.00016273,2]
[394705586,1763909438196,-500.0,0.00016273,2]
[394705587,1763909438207,-500.0,0.00016273,2]
[394705588,1763909438218,-316.74089691,0.00016273,2]
[394705589,1763909438229,-500.0,0.00016273,2]
[394705590,1763909438239,-500.99455373,0.00016273,2]
[394705591,1763909438250,-500.0,0.00016273,2]
[394705592,1763909438260,-500.0,0.00016273,2]
[394705593,1763909438271,-500.0,0.00016273,2]
[394705594,1763909438282,-206.52190789,0.00016273,2]
[394705595,1763909438292,-500.0,0.00016273,2]
[394705596,1763909438302,-500.0,0.00016273,2]
[394705597,1763909438312,-501.03651698,0.00016273,2]
[394705598,1763909438323,-500.0,0.00016273,2]
[394705599,1763909438334,-500.81238641,0.00016273,2]
[394705600,1763909438348,-161.68204084,0.00016273,2]
[394705601,1763909438358,-501.3168255,0.00016273,2]
[394705602,1763909438368,-500.0,0.00016273,2]
[394705603,1763909438383,-343.25943512,0.00016273,2]
[394705604,1763909438393,-500.0,0.00016273,2]
[394705605,1763909438403,-413.2167407,0.00016273,2]
[394705606,1763909438414,-500.0,0.00016273,2]
[394705607,1763909438424,-500.0,0.00016273,2]
[394705608,1763909438434,-500.0,0.00016273,2]
[394705609,1763909438444,-500.92358686,0.00016273,2]
[394705610,1763909438454,-500.0,0.00016273,2]
[394705611,1763909438464,-500.63287134,0.00016273,2]
[394705612,1763909438473,-500.0,0.00016273,2]
[394705613,1763909438483,-500.0,0.00016273,2]
[394705614,1763909438493,-505.91016895,0.00016273,2]
[394705615,1763909438502,-500.0,0.00016273,2]
[394705616,1763909438512,-500.0,0.00016273,2]
[394705617,1763909438521,-500.32512745,0.00016273,2]
[394705618,1763909438531,-500.0,0.00016273,2]
[394705619,1763909438540,-500.0,0.00016273,2]
[394705620,1763909438551,-327.84480847,0.00016273,2]
[394705621,1763909438560,-500.0,0.00016273,2]
[394705622,1763909438569,-481.05416053,0.00016273,2]
[394705623,1763909438579,-501.66376142,0.00016273,2]
[394705624,1763909438589,-537.54891861,0.00016273,2]
[394705625,1763909438601,-160.92701825,0.00016273,2]
[394705626,1763909438610,-500.0,0.00016273,2]
[394705627,1763909438620,-1926.93962092,0.00016284,2]
[394705628,1763909438630,-151.0,0.00016291,2]
[394705629,1763909438640,-500.0,0.00016293,2]
[394705630,1763909438649,-500.0,0.00016293,2]
[394705631,1763909438659,-500.0,0.00016293,2]
[394705632,1763909438668,-500.0,0.00016293,2]
[394705633,1763909438678,-500.0,0.00016293,2]
[394705634,1763909438687,-505.39826263,0.00016293,2]
[394705635,1763909438697,-500.0,0.00016293,2]
[394705636,1763909438707,-500.0,0.00016293,2]
[394705637,1763909438717,-4290.1678318,0.00016294,2]
[394705638,1763909438726,-313109.5734201,0.00016294,2]
[394705639,1763909438735,-161.0,0.000163,2]
[394705640,1763909438745,-161.0,0.000163,2]
[394705641,1763909438755,-161.0,0.000163,2]
[394705642,1763909438765,-1680.0,0.00016391,2]
[394705643,1763909438775,-205.00619201,0.00016397,2]
[394705644,1763909438786,-261.66181204,0.00016437,2]
[394705645,1763909438796,-1244.28644549,0.00016438,2]
[394705646,1763909438809,-200.0,0.00016438,2]
[394705647,1763909438819,-200.0,0.00016438,2]
[394705648,1763909438829,-200.0,0.00016438,2]
[394705649,1763909438840,-1000.0,0.00016438,2]
[394705650,1763909438852,-1009.33610382,0.00016438,2]
[394705651,1763909438862,-800.0,0.00016438,2]
[394705652,1763909438873,-1310.8,0.00016537,2]
[394705653,1763909438883,-2378.83,0.00016602,2]
[394705654,1763909438893,-200.0,0.00016602,2]
[394705655,1763909438903,-200.0,0.00016602,2]
[394705656,1763909438913,-200.0,0.00016602,2]
[394705657,1763909438923,-248.21,0.00016624,2]
[394705658,1763909438933,-500.0,0.00016721,2]
[394705659,1763909438942,-500.0,0.00016721,2]
[394705660,1763909438951,-1000.0,0.00016721,2]
[394705661,1763909438962,-503.64771979,0.00016721,2]
[394705662,1763909438977,-1000.0,0.00016721,2]